Cogmind - Beta 16 @@@ ROGUE MODE // 2026.02.09 @ 18:14:41 Player: AngelSpirit Result: Destroyed self via exploding Power Conduit Performance ------------- Evolutions (6) 3000 Regions Visited (19) 3800 Robots Destroyed (180) 900 Value Destroyed (4836) 4836 Prototype IDs (56) 1120 Alien Tech Used (2) 400 Bonus (2519) 2519 TOTAL SCORE: 16575 Bonus ------- High Alert Combat Kills 102 Follower Combat Kills 1048 Registered with UFD 300 Met Optimus in HQ 500 Met Imprinter 300 Met Zhirov 300 Friendly Fire -31 Cogmind --------- Core Integrity 0/1150 Matter 215/300 Energy 85/100 System Corruption 50% Temperature Cool (12) Movement Core (50) Location -4/Factory Parts ------- > --- POWER (1) -------- (None) > --- PROPULSION (7) --- (None) > --- UTILITY (9) ------ (None) > --- WEAPON (2) ------- (None) > --- INVENTORY (5) ---- Improved Trap Extractor (6/6 Dirty Bomb) Cooled Plasma Cannon Hypervelocity Mass Driver Ionic Axe Peak State ------------ > --- POWER ------------ Light Quantum Reactor > --- PROPULSION ------- Impulse Thruster Impulse Thruster Impulse Thruster Cooled Impulse Thruster Cooled Impulse Thruster Cooled Impulse Thruster Cooled Impulse Thruster > --- UTILITY ---------- Medium Storage Unit Advanced Sensor Array Advanced Signal Interpreter Enhanced Scrap Shield Advanced Hacking Suite Advanced Hacking Suite Advanced Hacking Suite Advanced System Shield > --- WEAPON ----------- Cooled Plasma Cannon Fusion Bomb Launcher > --- INVENTORY -------- F-cell Engine Field Propulsion Drive Field Propulsion Drive Field Propulsion Drive Improved Trap Extractor Transdimensional Reconstructor Cooled Proton Cannon Improved Plasma Cutter Multitool [Rating: 132] Favorites ----------- Power Subdweller Power Source Engine Subdweller Power Source Power Core Fission Core Reactor Cold Fusion Reactor Propulsion Cooled Impulse Thruster Treads Light Treads Wheel Wheel Hover Unit Improved Gravmag System Flight Unit Cooled Impulse Thruster Utility High-capacity Storage Unit Device Advanced Sensor Array Storage High-capacity Storage Unit Processor Advanced Signal Interpreter Hackware Improved Hacking Suite Protection Powered Armor Weapon Subdweller Machine Gun Energy Gun Gatling Laser Energy Cannon Subdweller Beam Cannon Ballistic Gun Subdweller Machine Gun Ballistic Cannon Light Cannon Launcher Mini Grenade Launcher Impact Weapon Power Maul Slashing Weapon Centrium Greatsword Build | -11 -10 -10 -9 -9 -6 -6 -6 -6 -6 -6 -5 -5 -5 -5 -5 -5 -5 -4 -4 ------- Run | Yrd Mat Sub Rec Scr Fac Was Fac Low Low Zio Pro Fac Was Fac Upp Upp Zhi Pro Fac Slots Evolved 12 | . . . . . 8 . . . . . . 2 . . . . . . 2 Power . | . . . . . . . . . . . . . . . . . . . . Propulsion 5 | . . . . . 3 . . . . . . 1 . . . . . . 1 Utility 7 | . . . . . 5 . . . . . . 1 . . . . . . 1 Weapon . | . . . . . . . . . . . . . . . . . . . . Parts Attached 195 | 6 13 20 1 2 55 3 35 2 3 2 1 16 1 15 . 1 4 . 15 Power 21 | 1 2 2 . 1 6 . 3 . . . 1 . . 3 . . 1 . 1 Engine 12 | 1 2 2 . 1 4 . 1 . . . . . . . . . . . 1 Core 5 | . . . . . 1 . 2 . . . 1 . . 1 . . . . . Reactor 4 | . . . . . 1 . . . . . . . . 2 . . 1 . . Propulsion 56 | 2 2 8 . 1 16 1 7 1 . . . 4 . 5 . . 1 . 8 Treads 4 | . . 4 . . . . . . . . . . . . . . . . . Leg . | . . . . . . . . . . . . . . . . . . . . Wheel 18 | 2 2 4 . 1 9 . . . . . . . . . . . . . . Hover 8 | . . . . . 7 . 1 . . . . . . . . . . . . Flight 26 | . . . . . . 1 6 1 . . . 4 . 5 . . 1 . 8 Utility 72 | 1 4 2 1 . 23 1 14 1 1 2 . 10 1 6 . 1 2 . 2 Device 23 | . 3 . . . 4 1 6 1 . 1 . 2 . 3 . . 1 . 1 Storage 5 | 1 1 . . . 2 . 1 . . . . . . . . . . . . Processor 13 | . . . . . 8 . 1 . . 1 . 1 . 1 . 1 . . . Hackware 19 | . . . 1 . 3 . 4 . 1 . . 7 . 2 . . . . 1 Protection 12 | . . 2 . . 6 . 2 . . . . . 1 . . . 1 . . Artifact . | . . . . . . . . . . . . . . . . . . . . Weapon 46 | 2 5 8 . . 10 1 11 . 2 . . 2 . 1 . . . . 4 Energy Gun 13 | 1 1 . . . 1 . 7 . 2 . . . . 1 . . . . . Energy Cannon 5 | . . 2 . . 1 . . . . . . 1 . . . . . . 1 Ballistic Gun 10 | 1 1 4 . . 1 . 3 . . . . . . . . . . . . Ballistic Cannon 5 | . 2 1 . . 1 . . . . . . . . . . . . . 1 Launcher 6 | . 1 1 . . 3 . 1 . . . . . . . . . . . . Special Weapon . | . . . . . . . . . . . . . . . . . . . . Impact Weapon 2 | . . . . . 2 . . . . . . . . . . . . . . Slashing Weapon 5 | . . . . . 1 1 . . . . . 1 . . . . . . 2 Piercing Weapon . | . . . . . . . . . . . . . . . . . . . . Special Melee Weapon . | . . . . . . . . . . . . . . . . . . . . Unidentified Prototypes 23 | . . . . . 4 1 8 . . . . 2 . 3 . . 3 . 2 Corrupted Parts 3 | . . . . . 2 . . . . . . . . 1 . . . . . System Corruption 7 | . . . . . 2 . . . . . . . . 5 . . . . . Parts Lost 60 | . 2 6 . . 13 . 5 . . . 2 4 . 3 . . . . 25 Power 6 | . . 1 . . 1 . 1 . . . . . . . . . . . 3 Propulsion 32 | . 1 4 . . 10 . 1 . . . 2 1 . 1 . . . . 12 Utility 15 | . . . . . 2 . 1 . . . . 3 . . . . . . 9 Weapon 7 | . 1 1 . . . . 2 . . . . . . 2 . . . . 1 Highest Loss Streak 21 | . 2 2 . . 4 . 1 . . . 2 2 . 2 . . . . 21 To Critical Strikes . | . . . . . . . . . . . . . . . . . . . . Average Backups 12 | . 8 17 17 14 14 13 9 9 9 9 8 8 8 8 9 9 9 9 7 Power 1 | . 1 2 2 . . . . 1 1 1 1 1 1 1 1 1 1 1 . Propulsion 3 | . 4 5 4 3 2 4 1 1 1 1 . . 1 2 4 4 3 2 1 Utility 3 | . 1 4 4 3 5 3 3 3 3 3 4 3 3 2 2 2 2 3 1 Weapon 2 | . . 3 4 2 2 3 2 2 2 2 1 1 2 1 1 1 1 1 1 Tool/Special . | . . . . . . . . . . . . . . . . . . . . Unused Backups 32 | . . 2 1 4 11 1 3 1 . 1 . 2 . 3 . . 1 . 2 Power 4 | . . 1 . 1 . . . . . . . . . 2 . . . . . Propulsion 9 | . . . . 1 2 1 2 1 . . . . . 1 . . 1 . . Utility 11 | . . . 1 . 7 . 1 . . . . 2 . . . . . . . Weapon 3 | . . 1 . 2 . . . . . . . . . . . . . . . Tool/Special 5 | . . . . . 2 . . . . 1 . . . . . . . . 2 Average Slot Usage (%) 93 | . 97 99 100 100 84 86 91 93 93 92 90 87 87 87 94 94 93 94 76 Engine 8 | . 14 13 14 14 3 . 2 6 6 6 4 4 5 2 . . . . . Treads 4 | . . 18 . . . . . . . . . . . . . . . . . Wheel 9 | . 27 9 28 28 8 . . . . . . . . . . . . . . Hover 3 | . . . . . 13 26 7 . . . . . . . . . . . . Flight 10 | . . . . . . . 19 33 33 33 30 28 29 29 35 35 35 35 32 Device 7 | . 12 8 . . 5 6 9 14 14 12 13 8 5 7 5 5 4 5 3 Storage 9 | . 14 14 14 14 6 6 6 6 6 6 6 5 5 5 5 5 5 5 4 Processor 6 | . . . . . 15 20 15 13 13 13 13 8 5 9 11 11 9 5 3 Hackware 9 | . . . 13 14 6 6 11 11 11 13 13 21 28 21 23 23 23 23 16 Protection 2 | . . 5 . . 6 5 2 . . . . . . . . . 1 5 4 Energy Gun 1 | . 14 . . . 1 . 2 . . . . . . . . . . . . Energy Cannon 3 | . . 12 . . . . . . . . . . . 1 5 5 5 5 4 Ballistic Gun 8 | . 1 10 28 28 3 . 6 . . . . . . . . . . . . Ballistic Cannon 2 | . 11 5 . . . . . . . . . . . . . . . . . Slashing Weapon 1 | . . . . . . 5 1 6 5 6 5 5 5 3 . . . . 1 Peak Build Rating 132 | 6 11 18 16 17 74 84 98 98 97 98 98 114 113 118 106 107 110 115 132 Average Rating 52 | 5 9 14 15 15 55 80 80 97 95 97 96 109 112 110 106 106 107 108 104 On Entrance 73 | . 6 9 16 16 17 74 81 98 97 97 98 94 112 113 106 106 107 108 108 Avg Prop Armor Cover (%) 13 | . . 13 . . . . . . . . . . . . . . . . . Naked Turns 24 | . . . . . . . . . . . . . . . . . . . 24 Heaviest Build 85 | 13 52 68 60 55 85 52 50 32 32 29 36 29 42 42 34 34 37 35 48 Greatest Support 64 | 26 26 40 20 20 62 52 52 32 32 32 33 51 42 51 45 45 45 45 64 Greatest Overweight (x) 8 | . 5 6 2 2 8 . 1 . . . 1 . . . . . . . . Average Overweight (x) . | . 1 1 2 2 . . . . . . . . . . . . . . . Largest Inventory Capacity 20 | 8 20 20 20 20 20 15 15 10 10 10 10 10 10 10 10 10 10 10 10 Average Capacity 15 | 7 18 20 20 20 17 15 11 10 10 10 10 10 10 10 10 10 10 10 9 Most Carried 20 | 2 18 20 20 20 20 15 15 10 10 10 10 10 10 10 10 10 10 10 10 Average Carried 14 | . 8 19 19 15 16 14 11 9 10 9 9 9 9 9 10 10 9 9 8 Final Capacity 20 | 8 20 20 20 20 15 15 10 10 10 10 10 10 10 10 10 10 10 10 5 Final Carried 20 | 2 17 20 20 16 15 15 10 10 10 10 9 9 9 10 10 10 10 10 4 Class Distribution -------------------- 30% | Mutant 23% | Scavenger-Mutant 12% | Scout 11% | Hacker-Scout 10% | Hacker-Sprinter 6% | Machinist-Scout 3% | Wizard-Sprinter Dominant Class ---------------- Mutant | -10/Materials Mutant | -10/Subcaves Scavenger-Mutant | -9/Recycling Mutant | -9/Scraptown Scout | -6/Factory Scout | -6/Waste Hacker-Scout | -6/Factory Machinist-Scout | -6/Lower Caves Machinist-Scout | -6/Lower Caves Machinist-Scout | -6/Zion Machinist-Scout | -5/Proximity Caves Hacker-Scout | -5/Factory Wizard-Sprinter | -5/Waste Hacker-Sprinter | -5/Factory Hacker-Sprinter | -5/Upper Caves Hacker-Sprinter | -5/Upper Caves Hacker-Sprinter | -5/Zhirov Hacker-Sprinter | -4/Proximity Caves Hacker-Sprinter | -4/Factory Resources | -11 -10 -10 -9 -9 -6 -6 -6 -6 -6 -6 -5 -5 -5 -5 -5 -5 -5 -4 -4 ----------- Run | Yrd Mat Sub Rec Scr Fac Was Fac Low Low Zio Pro Fac Was Fac Upp Upp Zhi Pro Fac Matter Collected 5058 | 272 294 918 10 20 823 172 1423 55 50 30 106 239 . 191 31 125 . 56 243 Remotely . | . . . . . . . . . . . . . . . . . . . . Salvage Created 6976 | 95 557 715 . . 1772 . 2138 31 77 . 44 551 . 606 . . . . 390 Parts 356 | 13 43 46 . . 71 . 115 1 2 . 4 17 . 21 . . . 2 21 Haulers Intercepted 11 | . 1 . . . 3 . 3 . . . . 2 . 2 . . . . . Recyclers Shooed 4 | . . . . . . . 4 . . . . . . . . . . . . Parts Field Recycled . | . . . . . . . . . . . . . . . . . . . . Retrieved Matter . | . . . . . . . . . . . . . . . . . . . . Parts Self-Destructed 29 | . . 13 . . . . . . 8 1 5 . . . . . . 2 . Prevented . | . . . . . . . . . . . . . . . . . . . . Parts Restored . | . . . . . . . . . . . . . . . . . . . . Kills | -11 -10 -10 -9 -9 -6 -6 -6 -6 -6 -6 -5 -5 -5 -5 -5 -5 -5 -4 -4 ------- Run | Yrd Mat Sub Rec Scr Fac Was Fac Low Low Zio Pro Fac Was Fac Upp Upp Zhi Pro Fac Combat Hostiles Destroyed 101 | . 13 18 . . 23 . 17 . 2 . 7 6 . 8 . . . 2 5 Melee 7 | . . . . . . . 3 . 1 . . 1 . 2 . . . . . Guns 21 | . 6 2 . . 4 . 8 . 1 . . . . . . . . . . Cannons 21 | . 3 13 . . 1 . . . . . . . . 1 . . . . 3 AOE 48 | . 4 3 . . 14 . 6 . . . 7 5 . 5 . . . 2 2 Classes Destroyed 22 | 1 6 5 . . 4 . 2 1 1 . . . . . . . . 1 1 Worker 11 | . . . . . 7 . 3 . . . . 1 . . . . . . . Builder 9 | . 1 . . . 6 . 2 . . . . . . . . . . . . Tunneler 9 | 5 1 . . . 1 . 1 . . . . . . 1 . . . . . Hauler 11 | . 1 . . . 3 . 3 . . . . 2 . 2 . . . . . Recycler 13 | . . . . . 5 . 7 . . . . 1 . . . . . . . Minesweeper 2 | . . . . . . . . 1 1 . . . . . . . . . . Mechanic 1 | . . . . . 1 . . . . . . . . . . . . . . Operator 6 | . 3 . . . . . 2 . . . . 1 . . . . . . . Drone 2 | . . . . . . . . . . . . . . . . . . 2 . Turret 2 | . . 2 . . . . . . . . . . . . . . . . . Watcher 13 | . 3 . . . 1 . 3 . . . . 3 . 3 . . . . . Swarmer 49 | . 6 3 . . 15 . 6 . 1 . 7 5 . 4 . . . . 2 Cutter 3 | . . . . . . . 3 . . . . . . . . . . . . Grunt 14 | . 7 3 . . . . 4 . . . . . . . . . . . . Duelist 1 | . . . . . . . . . 1 . . . . . . . . . . Sentry 13 | . . 1 . . 5 . 3 . . . . . . 3 . . . . 1 Hunter 4 | . . . . . . . 1 . . . . 1 . . . . . . 2 Programmer 4 | . . . . . 3 . . . . . . . . 1 . . . . . Artisan 1 | . . 1 . . . . . . . . . . . . . . . . . Cobbler 1 | . . 1 . . . . . . . . . . . . . . . . . Subdweller 11 | . . 11 . . . . . . . . . . . . . . . . . Scrapoid 2 | . . . . . . . . . . . . . . . . . . . 2 Best Kill Streak 8 | 5 6 3 . . 8 . 6 1 2 . 7 6 . 8 . . . 2 3 Combat Bots Only 7 | . 5 3 . . 5 . 4 . 2 . 7 5 . 7 . . . 2 3 Max Kills in Single Turn 4 | 1 2 3 . . 4 . 3 1 1 . 3 4 . 2 . . . 2 4 Gunslinging . | . . . . . . . . . . . . . . . . . . . . Exploded 3 | . 2 3 . . 3 . 2 . . . 3 3 . 1 . . . 2 2 Melee 1 | . . . . . . . 1 . 1 . . 1 . 1 . . . . . Uniques/NPCs Destroyed . | . . . . . . . . . . . . . . . . . . . . Combat | -11 -10 -10 -9 -9 -6 -6 -6 -6 -6 -6 -5 -5 -5 -5 -5 -5 -5 -4 -4 -------- Run | Yrd Mat Sub Rec Scr Fac Was Fac Low Low Zio Pro Fac Was Fac Upp Upp Zhi Pro Fac Hostile Shots Fired 1195 | . 35 139 . . 315 . 267 . 3 . 9 112 . 71 . . . . 244 Missed 500 | . 12 53 . . 96 . 126 . 2 . 5 58 . 36 . . . . 112 Hits 695 | . 23 86 . . 219 . 141 . 1 . 4 54 . 35 . . . . 132 Melee 7 | . . . . . . . 6 . 1 . . . . . . . . . . Projectile 688 | . 23 86 . . 219 . 135 . . . 4 54 . 35 . . . . 132 Critical Strikes 10 | . . . . . . . 4 . . . . 1 . 1 . . . . 4 Damage Taken 10420 | . 318 1357 . . 2038 35 1468 . 40 . 112 971 . 744 . . . . 3337 Core 2399 | . 53 110 . . 271 16 243 . 40 . 38 228 . 250 . . . . 1150 Absorbed by Shields 35 | . . . . . . . . . . . . . . . . . . . 35 Redirected to Shielding 93 | . . . . . . . . . . . . . . . . . . . 93 Ignored by Resistances 41 | . . 41 . . . . . . . . . . . . . . . . . Regen/Repaired (Parts) 497 | . . . . . . 33 74 . . . . 292 . 98 . . . . . Core Remaining (%) 53 | 100 . . . 34 . . . . . . 28 . . . . . . 52 . Volleys Fired 425 | 12 37 105 . . 66 . 124 . 7 . 4 4 . 19 . . . 1 46 Largest 2 | 2 2 2 . . 2 . 2 . 1 . 1 1 . 1 . . . 1 1 Hottest 160 | 60 105 160 . . 90 . 160 . 80 . 52 52 . 52 . . . 52 105 Shots Fired 645 | 24 69 190 . . 74 . 207 . 7 . 4 4 . 19 . . . 1 46 Gun 379 | 24 46 54 . . 43 . 205 . 7 . . . . . . . . . . Cannon 232 | . 20 131 . . 20 . . . . . . 3 . 15 . . . . 43 Launcher 34 | . 3 5 . . 11 . 2 . . . 4 1 . 4 . . . 1 3 Special . | . . . . . . . . . . . . . . . . . . . . Kinetic 361 | 12 29 141 . . 27 . 152 . . . . . . . . . . . . Thermal 227 | . 21 49 . . 36 . 53 . 7 . . 3 . 15 . . . . 43 Explosive 23 | . 3 . . . 5 . 2 . . . 4 1 . 4 . . . 1 3 Electromagnetic 34 | 12 16 . . . 6 . . . . . . . . . . . . . . Robot Hit Streak 22 | 7 13 20 . . 9 . 22 . 3 . . 1 . 6 . . . . 7 Robot Miss Streak 6 | 1 2 3 . . 5 . 3 . 4 . 2 . . 5 . . . . 6 Penetration Max 2 | . . . . . . . 2 . . . . . . . . . . . . Secondary Targets 1 | . 1 . . . . . . . . . . . . . . . . . . Max Gunslinging Chain 1 | . 1 . . . . . . . . . . . . . . . . . . Shots Hit Robots 428 | 15 42 103 . . 79 . 133 3 8 . . 13 . 17 . . . . 15 Core Hits 237 | 6 26 34 . . 42 . 77 1 5 . 9 9 . 16 . . . 1 11 Critical Kills 16 | . . . . . 1 . 15 . . . . . . . . . . . . Critical Parts Destroyed 22 | 1 . . . . 6 . 15 . . . . . . . . . . . . Critical Strikes 48 | 1 3 3 . . 8 . 32 . . . . . . 1 . . . . . Burn 2 | . 2 . . . . . . . . . . . . . . . . . . Destroy 33 | 1 . . . . . . 32 . . . . . . . . . . . . Blast 4 | . 1 3 . . . . . . . . . . . . . . . . . Smash 8 | . . . . . 8 . . . . . . . . . . . . . . Sever 1 | . . . . . . . . . . . . . . 1 . . . . . Melee Attacks 227 | . . . . . 76 . 26 12 4 1 . 72 . 35 . . . . 1 Impact 75 | . . . . . 75 . . . . . . . . . . . . . . Slashing 152 | . . . . . 1 . 26 12 4 1 . 72 . 35 . . . . 1 Piercing . | . . . . . . . . . . . . . . . . . . . . Sneak Attacks 27 | . . . . . 15 . 3 1 2 . . 4 . 2 . . . . . Combat Hostiles 2 | . . . . . . . 1 . 1 . . . . . . . . . . Follow-up Attacks . | . . . . . . . . . . . . . . . . . . . . Damage Inflicted 18324 | 205 838 2585 . . 4609 . 2976 275 460 . 781 2139 . 1930 . . . 233 1293 Guns 3877 | 169 441 688 . . 696 . 1795 . 88 . . . . . . . . . . Cannons 2789 | . 185 1603 . . 178 . . . . . . . . 162 . . . . 661 Explosions 5506 | 36 212 294 . . 1101 . 630 . . . 781 902 . 685 . . . 233 632 Melee 6152 | . . . . . 2634 . 551 275 372 . . 1237 . 1083 . . . . . Ramming . | . . . . . . . . . . . . . . . . . . . . Kinetic 3882 | 61 236 1914 . . 374 . 1297 . . . . . . . . . . . . Thermal 3667 | 36 269 671 . . 550 . 588 . 88 . . 419 . 385 . . . . 661 Explosive 4136 | . 172 . . . 833 . 540 . . . 781 483 . 462 . . . 233 632 Electromagnetic 487 | 108 161 . . . 218 . . . . . . . . . . . . . . Impact 2634 | . . . . . 2634 . . . . . . . . . . . . . . Slashing 3518 | . . . . . . . 551 275 372 . . 1237 . 1083 . . . . . Piercing . | . . . . . . . . . . . . . . . . . . . . Highest Corruption 50 | . . . . . 5 5 6 . . . . 8 8 13 . . . . 50 Average Corruption 4 | . . . . . 2 5 4 . . . . 3 8 7 . . . . 38 Corruption Purged 22 | . . . . . . . 9 . . . . . . 13 . . . . . Corruption Blocked . | . . . . . . . . . . . . . . . . . . . . Effects 104 | . . . . . 34 5 35 . . . . 7 3 4 . . . . 16 Message Errors 34 | . . . . . 11 1 16 . . . . 4 1 . . . . . 1 Matter Fused 17 | . . . . . 4 1 5 . . . . 1 . 3 . . . . 3 Heat Flow Errors 17 | . . . . . 8 1 6 . . . . 1 . . . . . . 1 Energy Discharges 4 | . . . . . 1 1 . . . . . 1 . . . . . . 1 Parts Rejected 3 | . . . . . . . 1 . . . . . 1 . . . . . 1 Data Loss (minor) 8 | . . . . . 4 1 2 . . . . . . 1 . . . . . Data Loss (major) 7 | . . . . . 4 . 1 . . . . . 1 . . . . . 1 Misfires 1 | . . . . . 1 . . . . . . . . . . . . . . Alerts 2 | . . . . . 1 . 1 . . . . . . . . . . . . Misdirections 8 | . . . . . . . . . . . . . . . . . . . 8 Weapon Failures 3 | . . . . . . . 3 . . . . . . . . . . . . Overload Shots 7 | . . . . . . . . . . . . . . . . . . . 7 Overflow Damage 2879 | . 33 53 . . 1213 . 141 133 124 . 113 553 . 331 . . . 92 93 Projectiles 51 | . . 20 . . . . . . . . . . . . . . . . 31 Explosions 631 | . 33 33 . . 33 . 23 . . . 113 103 . 139 . . . 92 62 Melee 2197 | . . . . . 1180 . 118 133 124 . . 450 . 192 . . . . . Knockbacks 26 | . 6 15 . . 5 . . . . . . . . . . . . . . Impact 5 | . . . . . 5 . . . . . . . . . . . . . . Kinetic 20 | . 5 15 . . . . . . . . . . . . . . . . . Secondary 1 | . 1 . . . . . . . . . . . . . . . . . . Self-Inflicted Damage 572 | . 85 75 . . 25 . . . . . 59 . . 31 . . . . 297 Shots 14 | . 3 2 . . 3 . . . . . 1 . . 1 . . . . 4 Rammed . | . . . . . . . . . . . . . . . . . . . . Targets Rammed . | . . . . . . . . . . . . . . . . . . . . Kicked . | . . . . . . . . . . . . . . . . . . . . Crushed . | . . . . . . . . . . . . . . . . . . . . Highest Temperature 285 | 60 41 117 . . 285 202 274 . 40 . 24 262 . 128 5 5 5 2 274 Average Temperature 46 | 31 9 30 . . 84 101 51 . 22 . 15 81 . 16 3 3 3 1 72 Received Heat Transfer 1719 | . 72 432 . . 408 9 351 . . . . 81 . 90 . . . . 276 Effects 4 | . . . . . . . . . . . . . . . . . . . 4 Energy Bleed 1 | . . . . . . . . . . . . . . . . . . . 1 Interference 3 | . . . . . . . . . . . . . . . . . . . 3 Siege Activations . | . . . . . . . . . . . . . . . . . . . . Martial Activations . | . . . . . . . . . . . . . . . . . . . . Shielding Activations . | . . . . . . . . . . . . . . . . . . . . Robots Disrupted . | . . . . . . . . . . . . . . . . . . . . Combat Hostiles . | . . . . . . . . . . . . . . . . . . . . Robots Corrupted 10 | . . . . . 10 . . . . . . . . . . . . . . Combat Hostiles 3 | . . . . . 3 . . . . . . . . . . . . . . Parts Fried 20 | 1 . . . . 19 . . . . . . . . . . . . . . Impact Corruptions 27 | . . . . . 27 . . . . . . . . . . . . . . Robots Melted 2 | . . . . . 1 . 1 . . . . . . . . . . . . Combat Hostiles 1 | . . . . . 1 . . . . . . . . . . . . . . Parts Melted 20 | . 2 3 . . 3 . 4 . . . . . . 3 . . . . 5 Heat Transferred 5349 | . 753 851 . . 1025 . 1150 . 200 . . 300 . 350 . . . . 720 Parts Sabotaged . | . . . . . . . . . . . . . . . . . . . . Parts Stolen . | . . . . . . . . . . . . . . . . . . . . Parts Stripped . | . . . . . . . . . . . . . . . . . . . . Power Chain Reactions 3 | 1 1 . . . 1 . . . . . . . . . . . . . . Alert | -11 -10 -10 -9 -9 -6 -6 -6 -6 -6 -6 -5 -5 -5 -5 -5 -5 -5 -4 -4 ------- Run | Yrd Mat Sub Rec Scr Fac Was Fac Low Low Zio Pro Fac Was Fac Upp Upp Zhi Pro Fac Maximum Alert Level 3 | . . . . . 1 . 2 . . . . 3 1 2 . . . . 2 Low Security (%) 63 | 100 100 . 100 . 76 100 15 . . . . 47 40 51 . . . . 70 Level 1 16 | . . . . . 23 . 25 . . . . 4 59 22 . . . . 29 Level 2 17 | . . . . . . . 58 . . . . 31 . 25 . . . . . Level 3 2 | . . . . . . . . . . . . 15 . . . . . . . Level 4 . | . . . . . . . . . . . . . . . . . . . . Level 5 . | . . . . . . . . . . . . . . . . . . . . High Security . | . . . . . . . . . . . . . . . . . . . . Max Security . | . . . . . . . . . . . . . . . . . . . . Peak Influence 985 | 20 174 . 129 . 246 21 687 . . . . 985 233 515 . . . . 442 Initial 233 | . 6 . 84 . . 21 . . . . . 69 233 121 . . . . . Average 200 | 4 94 . 38 . 108 5 390 . . . . 357 203 239 . . . . 159 Influence Increases 8174 | 25 548 280 179 . 1099 42 1882 50 60 . 181 1748 . 981 . . . 10 1089 Destroy 0b10 Robot/C 2320 | . 260 180 . . 480 . 740 . 40 . 160 120 . 180 . . . . 160 Destroy 0b10 Robot/NC 405 | 25 45 . . . 120 . 120 5 5 . . 45 . 30 . . . 10 . Destroy Leader 530 | . 58 10 . . 138 . 184 . . . 20 30 . 60 . . . . 30 Allied During Kill 282 | . . . . . . . 221 . . . 1 . . . . . . . 60 Trap Triggered on 0b10 20 | . . . . . . . 10 . . . . . . 10 . . . . . Successful Hack 553 | . 66 . 29 . 117 . 120 . . . . 114 . 99 . . . . 8 Select Force Hacks 230 | . 30 . 150 . . . . . . . . . . . . . . . 50 Disable Machine 510 | . 15 . . . 90 . 150 . . . . 75 . 105 . . . . 75 Destroy Structure 894 | . 29 . . . 49 42 142 . . . . 254 . 182 . . . . 196 Partial Spotted 255 | . . . . . 30 . 15 . . . . 105 . 15 . . . . 90 Lose Combat Pursuer 2175 | . 45 90 . . 75 . 180 45 15 . . 1005 . 300 . . . . 420 Influence Decreases 7673 | 15 408 254 355 . 1038 103 1201 363 211 217 71 1191 494 678 247 134 95 10 588 Entered New Map 1593 | . 4 73 92 . . 40 . 253 71 217 . 41 434 52 177 44 95 . . Time Decay 3669 | 15 384 161 263 . 603 57 571 110 140 . 41 460 60 356 70 90 . 10 278 Search Patrol Dispatched 300 | . . . . . . . . . . . . 300 . . . . . . . Lost Part 535 | . 20 20 . . 115 . 50 . . . 10 40 . 30 . . . . 250 Lost Ally 526 | . . . . . 20 6 280 . . . 20 50 . 90 . . . . 60 Purge Threat 1050 | . . . . . 300 . 300 . . . . 300 . 150 . . . . . Squads Dispatched 89 | . 2 . . . 16 . 27 . 1 . . 21 . 14 . . . . 8 Investigation 52 | . 2 . . . 8 . 12 . . . . 16 . 11 . . . . 3 Extermination 19 | . . . . . 6 . 4 . . . . 4 . 3 . . . . 2 Reinforcement 11 | . . . . . 2 . 7 . . . . 1 . . . . . . 1 Assault 4 | . . . . . . . 1 . 1 . . . . . . . . . 2 Garrison 3 | . . . . . . . 3 . . . . . . . . . . . . Intercept . | . . . . . . . . . . . . . . . . . . . . Searches Triggered 3 | . . . . . . . . . . . . 3 . . . . . . . Unchained Authorized 2 | . . . . . . . . . . . . . . 1 . . . . 1 Construction Impeded 1 | . . . . . 1 . . . . . . . . . . . . . . Haulers Reinforced 1 | . . . . . . . 1 . . . . . . . . . . . . Active Scanning Responses . | . . . . . . . . . . . . . . . . . . . . Cargo Convoy Interrupts 1 | . . . . . . . 1 . . . . . . . . . . . . Stealth | -11 -10 -10 -9 -9 -6 -6 -6 -6 -6 -6 -5 -5 -5 -5 -5 -5 -5 -4 -4 --------- Run | Yrd Mat Sub Rec Scr Fac Was Fac Low Low Zio Pro Fac Was Fac Upp Upp Zhi Pro Fac Distress Signals 19 | . . . . . 1 . 9 . . . . 4 . 2 . . . . 3 Communications Jammed . | . . . . . . . . . . . . . . . . . . . . Distress Signals . | . . . . . . . . . . . . . . . . . . . . Times Spotted 332 | . 22 22 . . 34 6 42 3 7 . 4 77 6 39 . . . . 70 Peak Tracking Total 19 | . 6 5 . . 5 3 9 3 9 . 4 11 6 13 . . . . 19 Tactical Retreats 59 | . 2 2 . . 3 1 6 2 1 . . 24 1 11 . . . . 6 Traps | -11 -10 -10 -9 -9 -6 -6 -6 -6 -6 -6 -5 -5 -5 -5 -5 -5 -5 -4 -4 ------- Run | Yrd Mat Sub Rec Scr Fac Was Fac Low Low Zio Pro Fac Was Fac Upp Upp Zhi Pro Fac Traps Triggered 24 | . 1 3 . . 2 . 6 . . . . 9 . 1 . . . . 2 Indirectly . | . . . . . . . . . . . . . . . . . . . . Trap Hack Attempts . | . . . . . . . . . . . . . . . . . . . . Triggered . | . . . . . . . . . . . . . . . . . . . . Disarmed . | . . . . . . . . . . . . . . . . . . . . Reprogrammed 6 | . . . . . . . . . . . . . . 6 . . . . . Reused 2 | . . . . . . . 1 . . . . . . 1 . . . . . Traps Extracted . | . . . . . . . . . . . . . . . . . . . . Installed 1 | . . . . . . . 1 . . . . . . . . . . . . Triggered 2 | . . . . . . . 1 . . . . . . 1 . . . . . Most Traps Carried 6 | . . 1 1 1 1 1 1 6 6 6 6 6 6 6 6 6 6 6 6 Machines | -11 -10 -10 -9 -9 -6 -6 -6 -6 -6 -6 -5 -5 -5 -5 -5 -5 -5 -4 -4 ---------- Run | Yrd Mat Sub Rec Scr Fac Was Fac Low Low Zio Pro Fac Was Fac Upp Upp Zhi Pro Fac Machines Disabled 40 | . 1 5 . . 6 . 10 1 . . . 5 . 7 . . . . 5 Max in Single Turn 4 | . 1 3 . . 1 . 4 1 . . . 2 . 4 . . . . 3 Garrison Access 10 | . . . . . 1 . 1 . . . . 3 . 2 . . . . 3 Machines Repaired . | . . . . . . . . . . . . . . . . . . . . Machines Dismantled . | . . . . . . . . . . . . . . . . . . . . Machines Sabotaged . | . . . . . . . . . . . . . . . . . . . . Overloaded Fab Kills 1 | . . . . . . . . . . . . . . . . . . . 1 Hacking | -11 -10 -10 -9 -9 -6 -6 -6 -6 -6 -6 -5 -5 -5 -5 -5 -5 -5 -4 -4 --------- Run | Yrd Mat Sub Rec Scr Fac Was Fac Low Low Zio Pro Fac Was Fac Upp Upp Zhi Pro Fac Machines Accessed 172 | . 8 2 11 3 28 . 35 . 1 . . 36 . 33 . 1 4 . 10 Terminals 77 | . 6 . 6 . 16 . 14 . . . . 13 . 16 . . . . 6 Fabricators 17 | . . . . . 3 . 4 . . . . 5 . 4 . . . . 1 Repair Stations 15 | . 1 . . . . . 5 . . . . 6 . 3 . . . . . Recycling Units 32 | . 1 . 5 . 6 . 6 . . . . 7 . 6 . . . . 1 Scanalyzers 10 | . . . . . 2 . 4 . . . . 2 . 2 . . . . . Garrison Access 10 | . . . . . 1 . 2 . . . . 3 . 2 . . . . 2 Total Hacks 535 | . 24 4 35 9 74 . 98 . 1 . . 117 . 132 . 1 17 . 23 Successful 367 | . 17 4 24 9 37 . 62 . 1 . . 82 . 95 . 1 17 . 18 Failed 168 | . 7 . 11 . 37 . 36 . . . . 35 . 37 . . . . 5 Catastrophic 28 | . 2 . 1 . 11 . 6 . . . . 4 . 4 . . . . . Database Lockouts . | . . . . . . . . . . . . . . . . . . . . Manual 231 | . 16 . 29 . 23 . 37 . . 1 . 54 . 66 . . . . 5 Terminals 267 | . 18 . 24 . 41 . 41 . . . . 52 . 74 . . . . 17 Fabricators 75 | . . . . . 11 . 13 . . . . 29 . 21 . . . . 1 Repair Stations 33 | . 4 . . . . . 11 . . . . 12 . 6 . . . . . Recycling Units 81 | . 2 . 11 . 15 . 16 . . . . 16 . 19 . . . . 2 Scanalyzers 34 | . . . . . 5 . 15 . . . . 5 . 9 . . . . . Garrison Access 13 | . . . . . 2 . 2 . . . . 3 . 3 . . . . 3 Terminal Hacks 119 | . 4 4 5 9 9 . 18 . 1 . . 15 . 26 . 1 17 . 10 Record 10 | . . 3 . 2 . . . . . . . . . . . . 5 . . Part Schematic 7 | . . . . . 1 . . . . . . 1 . 1 . . 4 . . Robot Schematic 2 | . . . 2 . . . . . . . . . . . . . . . . Robot Analysis 14 | . 1 . 2 6 . . . . . . . . . 1 . . 4 . . Prototype ID Bank 6 | . . . 1 . . . . . . . . . . 1 . . 4 . . Open Door 2 | . . . . . . . . . 1 . . . . . . 1 . . . Level Access Points 3 | . . . . . . . 1 . . . . . . 1 . . . . 1 Branch Access Points 4 | . . . . . . . 1 . . . . 1 . 1 . . . . 1 Emergency Access Points 1 | . . . . . . . 1 . . . . . . . . . . . . Machine Index 1 | . . . . . . . . . . . . . . 1 . . . . . Terminal Index 3 | . . . . . 1 . 1 . . . . . . . . . . . 1 Fabricator Index 2 | . . . . . . . 2 . . . . . . . . . . . . Repair Station Index 1 | . . . . . . . 1 . . . . . . . . . . . . Scanalyzer Index 1 | . . . . . 1 . . . . . . . . . . . . . . Garrison Index 2 | . . . . . . . . . . . . 1 . . . . . . 1 Alert Level 3 | . . . . . . . . . . . . 1 . 2 . . . . . Unreport Threat 7 | . . . . . 2 . 2 . . . . 2 . 1 . . . . . Locate Traps 21 | . 3 . . . 2 . 4 . . . . 3 . 7 . . . . 2 Reprogram Traps 1 | . . . . . . . . . . . . . . 1 . . . . . Recall Investigation 6 | . . . . . 1 . 1 . . . . . . 4 . . . . . Recall Extermination 5 | . . . . . . . 1 . . . . 2 . 1 . . . . 1 Hauler Manifests 2 | . . . . . 1 . 1 . . . . . . . . . . . . Registered Components 4 | . . . . . . . 1 . . . . 1 . 1 . . . . 1 Registered Prototypes 3 | . . . . . . . . . . . . 1 . 1 . . . . 1 Zone Layout 6 | . . . . . . . 1 . . . . 2 . 2 . . . . 1 Proto ID Catalog 2 | . . 1 . 1 . . . . . . . . . . . . . . . Fabricator Hacks 36 | . . . . . 7 . 7 . . . . 13 . 9 . . . . . Network Status 6 | . . . . . 3 . . . . . . 3 . . . . . . . Load Schematic 15 | . . . . . 2 . 3 . . . . 5 . 5 . . . . . Build 15 | . . . . . 2 . 4 . . . . 5 . 4 . . . . . Repair Station Hacks 17 | . 3 . . . . . 5 . . . . 6 . 3 . . . . . Scan Component 10 | . . . . . . . 4 . . . . 4 . 2 . . . . . Repair 4 | . . . . . . . 1 . . . . 2 . 1 . . . . . Refit 3 | . 3 . . . . . . . . . . . . . . . . . . Recycling Unit Hacks 25 | . 1 . 5 . 3 . 2 . . . . 7 . 6 . . . . 1 Retrieve Components 25 | . 1 . 5 . 3 . 2 . . . . 7 . 6 . . . . 1 Scanalyzer 30 | . . . . . 4 . 12 . . . . 5 . 9 . . . . . Insert Component 12 | . . . . . 2 . 5 . . . . 3 . 2 . . . . . Analyze 12 | . . . . . 1 . 5 . . . . 1 . 5 . . . . . Retrieve Study 6 | . . . . . 1 . 2 . . . . 1 . 2 . . . . . Garrison Access Hacks 9 | . . . . . 1 . 1 . . . . 3 . 2 . . . . 2 Seal Access 9 | . . . . . 1 . 1 . . . . 3 . 2 . . . . 2 Unauthorized Hacks 131 | . 9 . 14 . 13 . 17 . . . . 33 . 40 . . . . 5 Terminals 63 | . 8 . 9 . 5 . 6 . . . . 10 . 22 . . . . 3 Track 4 | . . . . . 1 . . . . . . 1 . 2 . . . . . Assimilate 5 | . . . . . 1 . 2 . . . . 1 . . . . . . 1 Botnet 29 | . 2 . 4 . 3 . 4 . . . . 2 . 12 . . . . 2 Operators 2 | . 1 . . . . . . . . . . 1 . . . . . . . Skim 23 | . 5 . 5 . . . . . . . . 5 . 8 . . . . . Fabricators 32 | . . . . . 4 . 4 . . . . 13 . 10 . . . . 1 Report 5 | . . . . . 1 . 1 . . . . 2 . 1 . . . . . Prioritize 12 | . . . . . 1 . 2 . . . . 5 . 4 . . . . . Liberate 7 | . . . . . 1 . . . . . . 4 . 2 . . . . . Fabnet 1 | . . . . . . . . . . . . . . 1 . . . . . Haulers 6 | . . . . . 1 . 1 . . . . 2 . 2 . . . . . Overload 1 | . . . . . . . . . . . . . . . . . . . 1 Repair Stations 4 | . . . . . . . . . . . . 3 . 1 . . . . . Patch 4 | . . . . . . . . . . . . 3 . 1 . . . . . Recycling Units 31 | . 1 . 5 . 4 . 6 . . . . 7 . 7 . . . . 1 Monitor 1 | . . . . . . . . . . . . . . 1 . . . . . Recyclers 1 | . . . . . . . . . . . . . . 1 . . . . . Tunnel 6 | . 1 . 5 . . . . . . . . . . . . . . . . Fedlink 19 | . . . . . 4 . 5 . . . . 6 . 4 . . . . . Scrapoids 4 | . . . . . . . 1 . . . . 1 . 1 . . . . 1 Scanalyzers . | . . . . . . . . . . . . . . . . . . . . Garrison Access 1 | . . . . . . . 1 . . . . . . . . . . . . Reprogram 1 | . . . . . . . 1 . . . . . . . . . . . . Data Cores Recovered 2 | . 1 . . . . . 1 . . . . . . . . . . . . Used . | . . . . . . . . . . . . . . . . . . . . Hacking Detections 128 | . 7 . 9 . 24 . 31 . . . . 25 . 26 . . . . 6 Full Trace Events 19 | . . . . . 4 . 4 . . . . 6 . 5 . . . . . Feedback Events 2 | . . . . . 1 . . . . . . 1 . . . . . . . Corruption 1 | . . . . . 1 . . . . . . . . . . . . . . Hackware Fried 1 | . . . . . . . . . . . . 1 . . . . . . . Feedback Blocked . | . . . . . . . . . . . . . . . . . . . . Robot Schematics Acquired 5 | . . . 2 . . . . . . 3 . . . . . . . . . Robots Built . | . . . . . . . . . . . . . . . . . . . . Authchips . | . . . . . . . . . . . . . . . . . . . . Time . | . . . . . . . . . . . . . . . . . . . . Total Robot Build Rating . | . . . . . . . . . . . . . . . . . . . . Part Schematics Acquired 30 | . . . . . 2 . 5 . . 14 . 2 . 3 . . 4 . . Parts Built 17 | . . . . . 2 . 4 . . . . 5 . 6 . . . . . Authchips 3 | . . . . . 2 . . . . . . . . 1 . . . . . Time 1239 | . . . . . 228 . 382 . . . . 376 . 253 . . . . . Total Part Build Rating 118 | . . . . . 10 . 29 . . . . 35 . 44 . . . . . Part Studies Acquired 5 | . . . . . 1 . 1 . . . . 1 . 2 . . . . . Parts Repaired 4 | . . . . . . . 1 . . . . 2 . 1 . . . . . Time 231 | . . . . . . . 124 . . . . 70 . 37 . . . . . Parts Recycled . | . . . . . . . . . . . . . . . . . . . . Recycled Matter . | . . . . . . . . . . . . . . . . . . . . Retrieved Matter . | . . . . . . . . . . . . . . . . . . . . Retrieved Components 44 | . . . 9 . 9 . 13 . . . . 4 . 8 . . . . 1 Parts Scanalyzed 9 | . . . . . 1 . 5 . . . . 1 . 2 . . . . . Part Schematics Acquired 9 | . . . . . 1 . 5 . . . . 1 . 2 . . . . . Parts Damaged . | . . . . . . . . . . . . . . . . . . . . Bothacking | -11 -10 -10 -9 -9 -6 -6 -6 -6 -6 -6 -5 -5 -5 -5 -5 -5 -5 -4 -4 ------------ Run | Yrd Mat Sub Rec Scr Fac Was Fac Low Low Zio Pro Fac Was Fac Upp Upp Zhi Pro Fac Used RIF Installer . | . . . . . . . . . . . . . . . . . . . . Robots Hacked . | . . . . . . . . . . . . . . . . . . . . Non-combat . | . . . . . . . . . . . . . . . . . . . . Combat . | . . . . . . . . . . . . . . . . . . . . Robot Hacks Applied . | . . . . . . . . . . . . . . . . . . . . Relay Couplers Released 1 | . . . . . . . . . . . . . . . . . . . 1 Machine Destruction 1 | . . . . . . . . . . . . . . . . . . . 1 Fabnet Peak Effective % 3 | . . . . . . . . . . . . . . . . . . 3 3 Robots Rewired 1 | . . . . . . . . . 1 . . . . . . . . . . Allies Hacked . | . . . . . . . . . . . . . . . . . . . . Hacks Repelled . | . . . . . . . . . . . . . . . . . . . . Allies | -11 -10 -10 -9 -9 -6 -6 -6 -6 -6 -6 -5 -5 -5 -5 -5 -5 -5 -4 -4 -------- Run | Yrd Mat Sub Rec Scr Fac Was Fac Low Low Zio Pro Fac Was Fac Upp Upp Zhi Pro Fac Total Allies 43 | . . . . . 2 18 6 . 1 . . 6 . 5 . . . . 5 Largest Group 18 | . . . . . 2 18 11 . 1 1 1 5 . 4 . . . . 5 Highest-Rated Group 638 | . . . . . 74 638 440 . 30 30 30 235 . 182 . . . . 238 Highest-Rated Ally 50 | . . . . . 37 50 50 . 30 30 30 47 . 47 . . . . 50 Total Orders . | . . . . . . . . . . . . . . . . . . . . Ally Attacks 371 | . . . . . 16 137 150 . . . 4 10 . 15 . . . . 39 Total Damage 12173 | . . . . . 328 6715 3209 . . . 41 770 . 365 . . . . 745 Kills 47 | . . . . . 2 12 24 . . . 1 4 . 1 . . . . 3 Allies Corrupted . | . . . . . . . . . . . . . . . . . . . . Allies Melted . | . . . . . . . . . . . . . . . . . . . . Intel | -11 -10 -10 -9 -9 -6 -6 -6 -6 -6 -6 -5 -5 -5 -5 -5 -5 -5 -4 -4 ------- Run | Yrd Mat Sub Rec Scr Fac Was Fac Low Low Zio Pro Fac Was Fac Upp Upp Zhi Pro Fac Active Infowar (turns) 12410 | . 361 2879 . . 2449 257 1929 227 296 512 270 1314 135 809 152 195 57 132 436 Optics 5401 | . . . . . 1321 257 1929 227 296 512 270 589 . . . . . . . Sensors 9119 | . 228 . . . 2244 257 1862 227 296 512 270 1314 135 809 152 195 50 132 436 Terrain 3037 | . . . . . 345 . 554 227 296 506 270 839 . . . . . . . Seismic 3012 | . 133 2879 . . . . . . . . . . . . . . . . . Decoding 73 | . . . . . . . . . . . . . . . . 33 40 . . T.N.C. 384 | . . . . . . . 384 . . . . . . . . . . . . ECM 1 | . . . . . . . . . . 1 . . . . . . . . . Robot Analysis Total 14 | . 1 . 2 6 . . . . . . . . . 1 . . 4 . . Derelict Logs Recovered 12 | . . 1 . 5 . . . 2 . 1 1 . . . . 1 . 1 . Drone Launches . | . . . . . . . . . . . . . . . . . . . . Drone Recoveries . | . . . . . . . . . . . . . . . . . . . . Exploration | -11 -10 -10 -9 -9 -6 -6 -6 -6 -6 -6 -5 -5 -5 -5 -5 -5 -5 -4 -4 ------------- Run | Yrd Mat Sub Rec Scr Fac Was Fac Low Low Zio Pro Fac Was Fac Upp Upp Zhi Pro Fac Turns Passed 18096 | 89 952 4585 958 1828 2779 257 1929 227 296 512 270 1317 135 811 152 195 57 132 615 Spaces Moved 21855 | 46 674 2165 628 1597 2540 315 3100 565 653 969 515 2675 322 1914 633 802 149 465 1128 Core 48 | 1 . . . . . . . . . . . . . . . . . . 47 Treads 955 | . . 955 . . . . . . . . . . . . . . . . . Legs . | . . . . . . . . . . . . . . . . . . . . Wheels 4954 | 45 674 1210 628 1597 800 . . . . . . . . . . . . . . Hover 2585 | . . . . . 1740 315 530 . . . . . . . . . . . . Flight 13313 | . . . . . . . 2570 565 653 969 515 2675 322 1914 633 802 149 465 1081 Fastest Speed 6 | 50 80 107 110 110 44 53 26 26 26 26 20 15 25 15 24 24 24 25 6 Average Speed 58 | 90 106 176 110 110 72 53 34 26 26 26 26 24 25 24 24 24 24 25 23 Slowest Speed 250 | 100 155 250 110 110 200 53 99 26 26 26 93 28 25 27 24 24 25 25 50 Overloaded Moves 292 | . . . . . . . . . . . 23 107 . 43 . . . . 119 Propulsion Burnouts . | . . . . . . . . . . . . . . . . . . . . Robots Hopped 72 | . . . . . . . 17 . . . . 19 . 14 . . . . 22 Potential Cave-ins 2 | . . . . . . . . . . . . . . . . . . . 2 Cave-ins Triggered . | . . . . . . . . . . . . . . . . . . . . Teleports 1 | . . . . . . . . . . . . . . . . . . . 1 Exploration Rate (%) 73 | 4 96 98 99 88 65 92 76 68 71 85 81 74 100 55 74 89 60 66 35 Regions Visited 19 Branch Regions 11 Pre-discovered Areas 20 | . 2 2 8 1 1 . . . . . . 2 . 1 . . 3 . . Known Exits Taken 11 | . 1 . . . . . 1 1 1 1 1 . . 1 1 1 1 1 . Unknown Exits Taken 4 | 1 . 1 1 1 . . . . . . . . . . . . . . . Scrap Searched 39 | . . 4 . 9 . . . 6 9 3 1 . . . 1 4 . 2 . Spaces Dug 386 | . 17 20 . . 37 . 140 8 . . . 58 . 25 . . . 28 53 Terrain Destroyed 715 | 4 25 80 . . 51 . 141 8 . . 78 93 . 89 . . . 28 118 Melee 127 | . . . . . 29 . 17 8 . . . 55 . 17 . . . . 1 Projectile 87 | . . 17 . . 10 . 22 . . . . 3 . 9 . . . . 26 AOE 501 | 4 25 63 . . 12 . 102 . . . 78 35 . 63 . . . 28 91 Terrain Rammed . | . . . . . . . . . . . . . . . . . . . . Walls Destroyed . | . . . . . . . . . . . . . . . . . . . . Machines Disabled . | . . . . . . . . . . . . . . . . . . . . Actions | -11 -10 -10 -9 -9 -6 -6 -6 -6 -6 -6 -5 -5 -5 -5 -5 -5 -5 -4 -4 --------- Run | Yrd Mat Sub Rec Scr Fac Was Fac Low Low Zio Pro Fac Was Fac Upp Upp Zhi Pro Fac Total 25986 | 68 839 2732 897 1672 3250 407 3680 620 762 1226 644 3160 376 2155 632 803 169 479 1415 Wait 2827 | 3 89 382 261 56 399 75 298 38 82 249 120 354 49 157 . . . 9 206 Move 21703 | 45 673 2164 627 1596 2540 314 3066 564 652 968 514 2640 321 1886 632 801 148 464 1088 Hop 63 | . . . . . . . 16 . . . . 16 . 13 . . . . 18 Pick Up 122 | 2 11 18 4 7 27 4 19 1 . 1 . 6 2 11 . . 2 1 6 Fast Attach 154 | 6 8 7 . . 42 4 32 1 5 3 1 17 1 10 . 1 9 . 7 Attach 66 | . 1 9 1 . 12 1 12 . . . 2 4 1 6 . . . 2 15 Detach 28 | . 5 4 . . 3 . 1 . 1 . 1 3 . 1 . . . 1 8 Swap 97 | . 9 24 . 2 26 . 22 1 . . 1 4 . 4 . . . . 4 Drop 212 | . 6 19 4 11 52 9 48 3 5 4 1 16 2 13 . 1 10 1 7 Fire 425 | 12 37 105 . . 66 . 124 . 7 . 4 4 . 19 . . . 1 46 Melee 226 | . . . . . 75 . 26 12 4 1 . 72 . 35 . . . . 1 Ram . | . . . . . . . . . . . . . . . . . . . . Kick . | . . . . . . . . . . . . . . . . . . . . Crush . | . . . . . . . . . . . . . . . . . . . . Escape Stasis 56 | . . . . . 8 . 15 . . . . 24 . . . . . . 9 Rewire 6 | . . . . . . . . . 6 . . . . . . . . . . Trap 1 | . . . . . . . 1 . . . . . . . . . . . . Miscellaneous . | . . . . . . . . . . . . . . . . . . . . Route ------- -11/Scrapyard -10/Materials (discovered 5 exits: *Mat x3 / *Min / *Sub) -10/Subcaves (discovered 3 exits: *Mat x2 / *Rec) -9/Recycling (discovered 2 exits: [*Fac] / *Scr) -9/Scraptown (discovered 2 exits: *Fac x2) -6/Factory (discovered 4 exits: *Fac x2 / *Low x2) -6/Waste -6/Factory (discovered 6 exits: *Fac x4 / *Low x2) -6/Lower Caves -6/Lower Caves (discovered 2 exits: *Fac / *Zio) -6/Zion -5/Proximity Caves -5/Factory (discovered 5 exits: *Fac x3 / Upp x2) -5/Waste -5/Factory (discovered 6 exits: *Fac x4 / *Upp x2) -5/Upper Caves -5/Upper Caves (discovered 2 exits: *Fac / *Zhi) -5/Zhirov -4/Proximity Caves -4/Factory (discovered 9 exits: Res x4 / Upp x2 / Ext x2 / *Arm) History --------- Turn | Location | Event 8 | -11/Scrapyard | Discovered new exit (range 15) 90 | -11/Scrapyard | Entered Materials 227 | -10/Materials | Discovered new exit (range 5) 312 | -10/Materials | Build established: Mutant 429 | -10/Materials | Discovered new exit (range 7) 668 | -10/Materials | Discovered new exit (range 16) 742 | -10/Materials | Identified exit to Materials 788 | -10/Materials | Identified exit to Subcaves 788 | -10/Materials | Identified exit to Mines 853 | -10/Materials | Learned 2 Storage zone layouts 871 | -10/Materials | Learned 4 Subcaves zone layouts 879 | -10/Materials | Learned location of Mines (-9) 895 | -10/Materials | Learned 2 Mines zone layouts 918 | -10/Materials | Learned 2 Materials zone layouts 1042 | -10/Materials | Entered Subcaves 1043 | -10/Subcaves | Identified exit to Materials 1068 | -10/Subcaves | Visited Clippyterm 1071 | -10/Subcaves | Learned location of Extension (-4) 1995 | -10/Subcaves | Ambushed by Subdweller buried in earth 2283 | -10/Subcaves | Shifting Twisted Machinery released Spk. Treads 2443 | -10/Subcaves | Visited 4L-MR0's lab 2470 | -10/Subcaves | Found Cargo Legs 2636 | -10/Subcaves | Learned location of Zion (-6) 2636 | -10/Subcaves | Met a Zionite searching for "candidates" 2655 | -10/Subcaves | Learned 4 Materials zone layouts 3277 | -10/Subcaves | Discovered exit to Materials (range 8) 3398 | -10/Subcaves | Build established: Scavenger-Mutant 3762 | -10/Subcaves | Core integrity fell below 50% 4152 | -10/Subcaves | Shifting Twisted Machinery released Sub. Laser 4175 | -10/Subcaves | Shifting Twisted Machinery released Battle Cannon 4477 | -10/Subcaves | Build established: Mutant 4603 | -10/Subcaves | Discovered new exit (range 15) 4774 | -10/Subcaves | Shifting Twisted Machinery released Sub. Machine Gun 4780 | -10/Subcaves | Shifting Twisted Machinery released Slug Cannon 5627 | -10/Subcaves | Entered Recycling 5628 | -9/Recycling | Met a Zionite searching for Scraptown 5913 | -9/Recycling | Build established: Scavenger-Mutant 6055 | -9/Recycling | Discovered new exit (range 15) 6347 | -9/Recycling | Learned Materials trap positions 6365 | -9/Recycling | Scanned before Scraplab entrance 6380 | -9/Recycling | Entered Scraplab 6389 | -9/Recycling | Discovered new exit (range 3) 6478 | -9/Recycling | Learned Materials recycling unit intel 6522 | -9/Recycling | Learned location of 1 exit from Storage 6585 | -9/Recycling | Entered Scraptown 6745 | -9/Scraptown | Discovered new exit (range 11) 6792 | -9/Scraptown | Scanned Subdweller tech in exchange for log data 6794 | -9/Scraptown | Learned location of Armory (-4) 6796 | -9/Scraptown | Learned location of 1 exit from Proximity Caves 6797 | -9/Scraptown | Learned Factory trap positions 6798 | -9/Scraptown | Learned Factory emergency access door positions 6799 | -9/Scraptown | Learned 8 Factory zone layouts 6881 | -9/Scraptown | Visited Shadow of the Wyrm 6903 | -9/Scraptown | Visited TADAMA 6923 | -9/Scraptown | Visited CPS Storage 6933 | -9/Scraptown | Visited UFD Registry 6967 | -9/Scraptown | Visited Cyclists 6977 | -9/Scraptown | Visited SPCMW 6992 | -9/Scraptown | Visited Bundlers 7043 | -9/Scraptown | Registered with UFD as "Phasewalker" 7085 | -9/Scraptown | Visited Analyses Database 7109 | -9/Scraptown | Visited Chapter 10 7129 | -9/Scraptown | Visited Junk Repository 7174 | -9/Scraptown | Delivered Scrap Shield to a Scientist 7263 | -9/Scraptown | Visited Observation Area 7285 | -9/Scraptown | Visited Supply Room 7320 | -9/Scraptown | Visited DA-N13 Charitable Foundation 7324 | -9/Scraptown | Found DCF Scrap (28 items) 7370 | -9/Scraptown | Visited Science Guys 7405 | -9/Scraptown | Visited Scrap Suit Storage 7427 | -9/Scraptown | Visited Research Penetration Think Tank 7457 | -9/Scraptown | Visited LU-1G1's Boring Crew 7549 | -9/Scraptown | Entered Cyclist Reading Room 7623 | -9/Scraptown | Build established: Mutant 8234 | -9/Scraptown | Discovered new exit (range 3) 8356 | -9/Scraptown | Met Optimus 8356 | -9/Scraptown | Accepted into 0bPrime 8413 | -9/Scraptown | Entered Factory 8413 | -6/Factory | Evolved 8 slots: Propulsion x3, Utility x5 8414 | -6/Factory | Identified exit to Lower Caves 8414 | -6/Factory | Identified exit to Factory 8415 | -6/Factory | Loaded intel: 106 trap records 8596 | -6/Factory | Lost 4 parts (1p3n) 8902 | -6/Factory | Loaded intel: 8 recycling unit locations 9241 | -6/Factory | Build established: Scavenger-Mutant 9627 | -6/Factory | Discovered exit to Lower Caves (range 4) 9921 | -6/Factory | Learned location of Protoforge (-3) 10170 | -6/Factory | Build established: Scout 10305 | -6/Factory | Found Powered Armor 10639 | -6/Factory | Discovered exit to Factory (range 8) 10742 | -6/Factory | Fabricated Biomechanical Wings (x1) 10871 | -6/Factory | Fabricated Biomechanical Wings (x1) 11192 | -6/Factory | Manually triggered Chute Trap 11192 | -6/Factory | Sucked down chute 11192 | -6/Factory | Entered Waste 11209 | -6/Waste | Spotted C-40 Crusher 11209 | -6/Waste | Spotted C-40 Crusher 11225 | -6/Waste | Spotted C-40 Crusher 11263 | -6/Waste | Warlord forces began an assault 11287 | -6/Waste | Allies destroyed C-40 Crusher 11298 | -6/Waste | Allies destroyed C-40 Crusher 11301 | -6/Waste | Spotted C-40 Crusher 11307 | -6/Waste | Allies destroyed C-40 Crusher 11310 | -6/Waste | Allies destroyed C-40 Crusher 11332 | -6/Waste | Spotted C-40 Crusher 11333 | -6/Waste | Spotted C-40 Crusher 11337 | -6/Waste | Lost 6 allies 11343 | -6/Waste | Allies destroyed C-40 Crusher 11345 | -6/Waste | Allies destroyed C-40 Crusher 11406 | -6/Waste | Discovered new exit (range 12) 11430 | -6/Waste | Identified exit to Factory 11449 | -6/Waste | Entered Factory 11449 | -6/Factory | Accompanied by 11 allies 11570 | -6/Factory | Lost 5 allies 11604 | -6/Factory | Spotted B-75 Beast 11639 | -6/Factory | Lost 3 allies 11863 | -6/Factory | Loaded intel: 8 recycling unit locations 11949 | -6/Factory | Scrapoid reinforcements arrived 12008 | -6/Factory | Garrison activated, responded to threat 12044 | -6/Factory | Lost 4 allies 12176 | -6/Factory | Discovered exit to Lower Caves (range 5) 12266 | -6/Factory | Fabricated Biomechanical Wings (x1) 12452 | -6/Factory | Build established: Hacker-Scout 12500 | -6/Factory | Fabricated Fusion Bomb Launcher (x1) 12699 | -6/Factory | Core integrity fell below 50% 12762 | -6/Factory | Repaired Broken Centrium Greatsword? 12787 | -6/Factory | Cargo convoy interrupted 12824 | -6/Factory | Found Prototype Device 12824 | -6/Factory | Identified Exp. Terrain Scanner 12987 | -6/Factory | Fabricated Cld. Impulse Thruster (x1) 13199 | -6/Factory | First assault squad dispatched 13253 | -6/Factory | Fabricated Cld. Impulse Thruster (x1) 13378 | -6/Factory | Entered Lower Caves 13380 | -6/Lower Caves | UFD Scientist delivered a prototype 13383 | -6/Lower Caves | Found Prototype Protection 13425 | -6/Lower Caves | Acquired the password to a Derelict Tinkerer's latest research 13447 | -6/Lower Caves | Encountered a Warlord checkpoint 13449 | -6/Lower Caves | Learned 4 Factory zone layouts 13449 | -6/Lower Caves | Learned 4 Factory zone layouts 13451 | -6/Lower Caves | Spotted B-75 Beast 13505 | -6/Lower Caves | Discovered new exit (range 4) 13509 | -6/Lower Caves | Identified exit to Lower Caves 13605 | -6/Lower Caves | Entered another Lower Caves area 13609 | -6/Lower Caves | Discovered exit to Factory (range 15) 13616 | -6/Lower Caves | Encountered a Warlord checkpoint 13683 | -6/Lower Caves | Build established: Machinist-Scout 13732 | -6/Lower Caves | Discovered new exit (range 21) 13748 | -6/Lower Caves | Attracted the attention of an 0b10 outpost 13863 | -6/Lower Caves | Identified exit to Zion 13901 | -6/Lower Caves | Entered Zion 13901 | -6/Zion | Accompanied by 1 ally 13918 | -6/Zion | Given the Hacking Drone Bay 13919 | -6/Zion | Found Prototype Device 13923 | -6/Zion | Discovered new exit (range 13) 13942 | -6/Zion | Received a visual enhancement algorithm 13942 | -6/Zion | Ran a visual enhancement algorithm 14226 | -6/Zion | Turned away by Imprinter 14320 | -6/Zion | Identified exit to Proximity Caves 14413 | -6/Zion | Entered Proximity Caves 14413 | -5/Proximity Caves | Accompanied by 1 ally 14426 | -5/Proximity Caves | Learned 8 Factory zone layouts 14596 | -5/Proximity Caves | Spotted B-75 Beast 14631 | -5/Proximity Caves | Destroyed 7 combat bots 14683 | -5/Proximity Caves | Entered Factory 14683 | -5/Factory | Evolved 2 slots: Propulsion x1, Utility x1 14684 | -5/Factory | Identified exit to Upper Caves 14685 | -5/Factory | Identified exit to Factory 14739 | -5/Factory | Loaded intel: 8 recycling unit locations 14839 | -5/Factory | Fabricated Cld. Impulse Thruster (x1) 14899 | -5/Factory | Build established: Hacker-Scout 15204 | -5/Factory | Spotted B-75 Beast 15215 | -5/Factory | Fabricated Adv. Hacking Suite (x1) 15256 | -5/Factory | Identified Enh. Scrap Shield 15256 | -5/Factory | Identified Hacking Drone Bay 15283 | -5/Factory | Search patrols dispatched 15353 | -5/Factory | Repaired Cld. Impulse Thruster 15520 | -5/Factory | Scrapoids reinforcements arrived? 15522 | -5/Factory | Learned location of 2 exits from Upper Caves 15571 | -5/Factory | Learned location of Warlord (-4) 15583 | -5/Factory | Search patrols dispatched 15608 | -5/Factory | Learned 4 Quarantine zone layouts 15623 | -5/Factory | Fabricated Centrium Greatsword (x1) 15678 | -5/Factory | Learned 8 Research zone layouts 15713 | -5/Factory | Learned Armory terminal intel 15769 | -5/Factory | Discovered exit to Factory (range 9) 15815 | -5/Factory | Fabricated Adv. Hacking Suite (x1) 15821 | -5/Factory | Repaired Fusion Bomb Launcher 15832 | -5/Factory | Build established: Wizard-Sprinter 15851 | -5/Factory | Fabricated Cld. Impulse Thruster (x1) 15883 | -5/Factory | Search patrols dispatched 15891 | -5/Factory | Discovered exit to Factory (range 15) 15905 | -5/Factory | Imp. Hacking Suite fried by hacking feedback 16000 | -5/Factory | Manually triggered Chute Trap 16000 | -5/Factory | Sucked down chute 16000 | -5/Factory | Entered Waste 16010 | -5/Waste | Spotted C-40 Crusher 16017 | -5/Waste | Spotted C-40 Crusher 16070 | -5/Waste | Spotted C-40 Crusher 16082 | -5/Waste | Spotted C-40 Crusher 16108 | -5/Waste | Spotted C-40 Crusher 16110 | -5/Waste | Spotted C-40 Crusher 16124 | -5/Waste | Discovered new exit (range 13) 16135 | -5/Waste | Identified exit to Factory 16135 | -5/Waste | Entered Factory 16161 | -5/Factory | System corruption reached 10% 16177 | -5/Factory | Fabricated Imp. System Restoration Module (x2) 16216 | -5/Factory | Loaded intel: 8 recycling unit locations 16330 | -5/Factory | Discovered exit to Factory (range 15) 16431 | -5/Factory | Build established: Hacker-Sprinter 16445 | -5/Factory | Fabricated Cld. Impulse Thruster? 16502 | -5/Factory | Learned 2 Upper Caves zone layouts 16524 | -5/Factory | Loaded intel: 4 scanalyzer locations 16538 | -5/Factory | Fabricated Lgt. Quantum Reactor (x2) 16538 | -5/Factory | Learned Quarantine trap positions 16543 | -5/Factory | Learned location of Upper Caves (-4) 16544 | -5/Factory | Learned 4 Armory zone layouts 16569 | -5/Factory | Learned location of 1 exit from Armory 16661 | -5/Factory | Scrapoids reinforcements arrived? 16763 | -5/Factory | Destroyed 7 combat bots 16809 | -5/Factory | Repaired Lgt. Quantum Reactor? 16857 | -5/Factory | Fabricated Cld. Impulse Thruster (x1) 16896 | -5/Factory | Unchained authorized (DW-4LL) 16946 | -5/Factory | Entered Upper Caves 16947 | -5/Upper Caves | Identified exit to Upper Caves 16962 | -5/Upper Caves | Spotted B-75 Beast 17098 | -5/Upper Caves | Entered another Upper Caves area 17099 | -5/Upper Caves | Identified exit to Zhirov 17119 | -5/Upper Caves | Discovered exit to Factory (range 5) 17293 | -5/Upper Caves | Entered Zhirov 17293 | -5/Zhirov | Discovered new exit (range 3) 17298 | -5/Zhirov | Met Zhirov 17303 | -5/Zhirov | Learned location of Quarantine (-3) 17303 | -5/Zhirov | Learned location of Testing (-2) 17305 | -5/Zhirov | Zhirov requested help retrieving the SGEMP Prototype 17309 | -5/Zhirov | Found Alien Artifact 17309 | -5/Zhirov | Identified Integrated Reactor 17309 | -5/Zhirov | Installed Integrated Reactor, increased core energy generation (+10) 17315 | -5/Zhirov | Found Alien Artifact 17349 | -5/Zhirov | Identified exit to Proximity Caves 17350 | -5/Zhirov | Entered Proximity Caves 17472 | -4/Proximity Caves | Discovered exit to Factory (range 9) 17482 | -4/Proximity Caves | Entered Factory 17482 | -4/Factory | Evolved 2 slots: Propulsion x1, Utility x1 17523 | -4/Factory | Identified exit to Research 17578 | -4/Factory | Identified exit to Upper Caves 17578 | -4/Factory | Identified exit to Extension 17578 | -4/Factory | Identified exit to Armory 17695 | -4/Factory | Unchained authorized (DW-4LL) 17731 | -4/Factory | Scrapoid reinforcements arrived 17933 | -4/Factory | DW-4LL burst out of a wall 17939 | -4/Factory | System corruption reached 10% 17965 | -4/Factory | System corruption reached 30% 17968 | -4/Factory | Lost 4 allies 18021 | -4/Factory | DW-4LL burst out of a wall 18035 | -4/Factory | Identified Transdimensional Reconstructor 18035 | -4/Factory | Warped through subspace 18064 | -4/Factory | DW-4LL burst out of a wall 18067 | -4/Factory | Core integrity fell below 50% 18073 | -4/Factory | Core integrity fell below 20% 18094 | -4/Factory | Lost 21 parts (2p12n7u) 18097 | -4/Factory | Destroyed self via exploding Power Conduit Last Messages --------------- 18063_ Field Propulsion Drive+ destroyed. 18063_ Impulse Thruster+ destroyed. DW-4LL bursts from the wall. DW-4LL: "SPICYTARGET!" 18064_ Dropped Enh. Scrap Shield. 18066_ Knocked back. 18069_ Destroyed Autogun. 18071_ Knocked back. 18072_ U-05 Engineer works on Assembly Bed. 18075_ Penetrated by Slug. 18076_ System corrupted: Matter fused (-9). 18078_ Penetrated by Slug. 18078_ Knocked back. 18085_ ALERT: Potential suspicious activity detected, Programmers report to Factory Zone 2E. 18091_ System corrupted: Energy discharge (-31). 18097_ Fusion Bomb Launcher destroyed. 18097_ Destroyed Fusion Bomb Launcher. 18097_ Power Conduit explodes. Map ----- +----------------------------------------------------+ | ?????????????????????????????????????????????????? | | ?????????????????????????????????????????????????? | | ?????????????????????????????????????????????????? | | ?????????????????????????????????????????????????? | | ?????????????????????????????????????????????????? | | ?????????????????????????????????????????????????? | | ?????????????????????????????????????????????????? | | ?????????????????????????????????????????????????? | | ?????????????????????????????????????????????????? | | ?????????????????????????????????????????????????? | | ?????????????????????????????????????????????????? | | ?????????????????????????????????????????????????? | | ?????????????????????????????????????????????????? | | ?????????????????????????????????????????????????? | | ?????????????????????????????????????????????????? | | ?????????????????????????????????????????????????? | | ?????????????????????????????????????????????????? | | ???????>?????????????????????????????????????????? | | ?????????????????????????????????????????????????? | | ?????????????????????????????????????????????????? | | ?????????????????????????????????????????????????? | | ?????????????????????#########???????????????????? | | ?????????????????????# #???????????????????? | | ?????????????????????# ?????????????????? | | ?????????????????????# ;;;####?????????????? | | ??????????????????????# @ #???????????? | | ????????????????? #???????????? | | ??????????????" " """ # #???????????? | | ????????????????" "R??# #???????????? | | ????????????????? ????### #???????????? | | ????????????????????????# #???????????? | | ????????????????????????# #???????????? | | ????????????????????????# """"""""" #????##?????? | | ????????????????????????# #????# ###### | | ????????????????????????# 8""""""""" #????# | | ??????????!?????????????# #????# ] | | ????????????????????????# #????# ! | | ??????????????????????#########+########### !]] | | ??????????????????????# # !]] | | ??????????????????????# # !]] | | ??????????????????????# """" + | | ??????????????????????# ! "F " # | | ??????????????????????# # | | ??????????????????????# ! ######+# | | ??????????????????????# ! #??????# ! | | ??????????????????????# #??????# [ | | ??????????????????????# """ """ #??????######## | | ??????????????????????# """ """ #?????????????? | | ??????????????????????# ??"" """ +????????????# | | ??????????????????????????? ?? #?????????????# | +----------------------------------------------------+ Best States ------------- Heat Dissipation 68 Energy Generation 41 Energy Capacity 500 Matter Stores 300 Matter Capacity 300 Sight Range 22 Robot Scan Range 18 Terrain Scan Range 30 Terrain Scan Density 85 Power Amplification 30 Additional Mass Support 12 Armor Coverage 825 Resistance: KI 10 Propulsion Shielding 90 Evasion (%) 66 Melee Accuracy 5 Core Analysis 9 Recoil Reduction 2 Offensive Hacking 56 Defensive Hacking 28 Authchip Count 2 Trap Extractor Capacity 6 Item Schematics ----------------- Hyp. Gauss Rifle | -6/Factory | Hacked Biomechanical Wings | -6/Factory | Scanalyzed Centrium Greatsword | -6/Factory | Scanalyzed Cld. Impulse Thruster | -6/Factory | Scanalyzed Multitool | -6/Factory | Scanalyzed CPS Tube | -6/Factory | Scanalyzed Imp. System Restoration Module | -6/Factory | Scanalyzed Imp. System Shield | -6/Zion | Archive Hvy. Phase Cannon | -6/Zion | Archive Imp. Corruption Screen | -6/Zion | Archive Proton Cannon | -6/Zion | Archive Adv. Hacking Suite | -6/Zion | Archive Energy Well | -6/Zion | Archive HERF Cannon | -6/Zion | Archive Centrium Wheel | -6/Zion | Archive Flexi-carbon Leg | -6/Zion | Archive Mni. Drone Bay | -6/Zion | Archive Mass Driver | -6/Zion | Archive Adv. Melee Analysis Suite | -6/Zion | Archive Coil Gun | -6/Zion | Archive Lrn. Phase Cannon | -6/Zion | Archive Imp. Sensor Array | -5/Factory | Scanalyzed Imp. Cloaking Device | -5/Factory | Hacked Lgt. Quantum Reactor | -5/Factory | Scanalyzed Lrn. Sensor Array | -5/Factory | Hacked Impulse Thruster | -5/Factory | Scanalyzed Assault Drone Bay | -5/Zhirov | Free Exp. Heat Sink | -5/Zhirov | Free Exp. Optical Array | -5/Zhirov | Free Imp. Arc Thrower | -5/Zhirov | Free Robot Schematics ------------------ M-13 Machinist | -9/Recycling | Hacked I-25 Savior | -9/Recycling | Hacked R-10 Processor | -6/Zion | Archive A-02 Transporter | -6/Zion | Archive T-07 Excavator | -6/Zion | Archive Fabricated ------------ Biomechanical Wings | x1 | -6/Factory | Authchip Biomechanical Wings | x1 | -6/Factory | Authchip Biomechanical Wings | x1 | -6/Factory Fusion Bomb Launcher | x1 | -6/Factory | Preloaded Cld. Impulse Thruster | x1 | -6/Factory Cld. Impulse Thruster | x1 | -6/Factory Cld. Impulse Thruster | x1 | -5/Factory Adv. Hacking Suite | x1 | -5/Factory Centrium Greatsword | x1 | -5/Factory Adv. Hacking Suite | x1 | -5/Factory Cld. Impulse Thruster | x1 | -5/Factory Imp. System Restoration Module | x2 | -5/Factory | Authchip Cld. Impulse Thruster | x1 | -5/Factory Lgt. Quantum Reactor | x2 | -5/Factory Cld. Impulse Thruster | x1 | -5/Factory Repaired ---------- Centrium Greatsword | 66% | -6/Factory | Broken Cld. Impulse Thruster | 3% | -5/Factory Fusion Bomb Launcher | 50% | -5/Factory Lgt. Quantum Reactor | 22% | -5/Factory Studied --------- Hyp. Gauss Rifle | -6/Factory | Hacked Mic. Fission Core | -6/Factory | Hacked Nuclear Pulse Array | -5/Factory | Hacked Field Propulsion Drive | -5/Factory | Hacked Impulse Thruster | -5/Factory | Hacked Alien Tech Used ----------------- Integrated Reactor Transdimensional Reconstructor Achievements -------------- None Challenges ------------ None Game ------ Seed CouplerThunderPerforator Manual? 0 Play Time 04:08:52 Cumulative 537.9 hours Start 2026.02.09 @ 03:47:51 End 2026.02.09 @ 18:14:41 Sessions 3 Manual Loads 0 Difficulty Rogue Special Mode None Game No. 185 Rogue 185 Adventurer 0 Explorer 0 Win Type - Total 17 Types 8/0/5/1/0/0/0/1/0/2 Lore% 91 Gallery% 87 Achievement% 75 Wizard Run 0 Options --------- Layout 1 ASCII 0 Keyboard 0 Movement Mouse Keybinds 0 Fullscreen 2 Font 32/SmallcapsGlow Map View 50x35 Zoom Use 0% Tactical HUD 1 Map Filters NONE Filters NONE Steam 1 RUN: 2cfd8ab1-474a-4297-b5e0-3ee0a505add6